fUSD/lending_fUSD_20241121
["ID","MTS","AMOUNT","RATE_DAILY","PERIOD"]
[342903455,1732199475416,-500.0,0.00042191,18]
[342903456,1732199475425,-1478.2,0.00042191,18]
[342903457,1732199475435,-1426.49,0.00042191,18]
[342903458,1732199475448,-790.05,0.00042191,18]
[342903459,1732199475458,-500.0,0.00042191,18]
[342903460,1732199475468,-500.0,0.00042191,18]
[342903461,1732199475478,-600.57,0.00042191,18]
[342903462,1732199475487,-500.0,0.00042191,18]
[342903463,1732199475497,-529.75,0.00042191,18]
[342903464,1732199475506,-500.0,0.00042191,18]
[342903465,1732199475521,-2122.71,0.00042191,18]
[342903466,1732199475531,-859.01,0.00042191,18]
[342903467,1732199475541,-500.0,0.00042191,18]
[342903468,1732199475551,-500.0,0.00042191,18]
[342903469,1732199475560,-1977.19,0.00042191,18]
[342903470,1732199475570,-373.27396856,0.00042191,18]
[342903471,1732199475579,-1432.38,0.00042191,18]
[342903472,1732199475589,-500.0,0.00042191,18]
[342903473,1732199475598,-2472.57,0.00042191,18]
[342903474,1732199475608,-606.18,0.00042191,18]
[342903475,1732199475618,-629.86,0.00042191,18]
[342903476,1732199475627,-500.0,0.00042191,18]
[342903477,1732199475636,-1009.33,0.00042191,18]
[342903478,1732199475646,-500.0,0.00042191,18]
[342903479,1732199475655,-1653.26,0.00042191,18]
[342903480,1732199475665,-500.0,0.00042191,18]
[342903481,1732199475675,-6237.96,0.00042191,18]
[342903482,1732199475685,-1033.33,0.00042191,18]
[342903483,1732199475697,-500.0,0.00042191,18]
[342903484,1732199475707,-563.25,0.00042191,18]
[342903485,1732199475717,-787.81,0.00042191,18]
[342903486,1732199475726,-783.85,0.00042191,18]
[342903487,1732199475736,-2056.99,0.00042191,18]
[342903488,1732199475746,-2137.16,0.00042191,18]
[342903489,1732199475755,-500.0,0.00042191,18]
[342903490,1732199475766,-1553.89,0.00042191,18]
[342903491,1732199475779,-500.0,0.00042191,18]
[342903492,1732199475788,-3963.56,0.00042191,18]
[342903493,1732199475798,-151.0,0.00042191,14]
[342903494,1732199475807,-500.0,0.00042191,18]
[342903495,1732199475817,-500.0,0.00042191,18]
[342903496,1732199475827,-772.17,0.00042191,18]
[342903497,1732199475837,-1945.98,0.00042191,18]
[342903498,1732199475846,-500.0,0.00042191,18]
[342903499,1732199475856,-633.50943671,0.00042191,18]
[342903500,1732199475866,-5549.97,0.00042191,18]
[342903501,1732199475876,-1287.87,0.00042191,18]
[342903502,1732199475885,-500.0,0.00042191,18]
[342903503,1732199475895,-1814.21,0.00042191,18]
[342903504,1732199475905,-500.0,0.00042191,18]
[342903505,1732199475914,-517.01,0.00042191,18]
[342903506,1732199475923,-202.59932252,0.00042191,18]
[342903507,1732199475932,-1235.91,0.00042191,18]
[342903508,1732199475946,-500.0,0.00042191,18]
[342903509,1732199475956,-4876.46,0.00042191,18]
[342903510,1732199475966,-1091.75,0.00042191,18]
[342903511,1732199475975,-507.38,0.00042191,18]
[342903512,1732199475985,-500.0,0.00042191,18]
[342903513,1732199475995,-676.94,0.00042191,18]
[342903514,1732199476005,-2847.03,0.00042191,18]
[342903515,1732199476015,-557.09,0.00042191,18]
[342903516,1732199476025,-3509.44,0.00042191,18]
[342903517,1732199476103,-367.743508,0.00042191,14]
[342903518,1732199476112,-500.0,0.00042191,18]
[342903519,1732199476122,-3537.99,0.00042191,18]
[342903520,1732199476131,-500.0,0.00042191,18]
[342903521,1732199476140,-847.95,0.00042191,18]
[342903522,1732199476149,-367.743508,0.00042191,14]
[342903523,1732199476158,-500.0,0.00042191,18]
[342903524,1732199476168,-1883.13,0.00042191,18]
[342903525,1732199476177,-7181.82,0.00042191,18]
[342903526,1732199476186,-520.42,0.00042191,18]
[342903527,1732199476196,-743.52,0.00042191,18]
[342903528,1732199476205,-500.0,0.00042191,18]
[342903529,1732199476214,-863.4,0.00042191,18]
[342903530,1732199476224,-619.34,0.00042191,18]
[342903531,1732199476233,-500.0,0.00042191,18]
[342903532,1732199476243,-1290.72,0.00042191,18]
[342903533,1732199476252,-2661.51,0.00042191,18]
[342903534,1732199476262,-345.24464122,0.00042191,18]
[342903535,1732199476272,-284.74701225,0.00042191,18]
[342903536,1732199476282,-747.11,0.00042191,18]
[342903537,1732199476292,-950.06,0.00042191,18]
[342903538,1732199476301,-1336.14,0.00042191,18]
[342903539,1732199476311,-500.0,0.00042191,18]
[342903540,1732199476321,-509.02,0.00042191,18]
[342903541,1732199476330,-732.65,0.00042191,18]
[342903542,1732199476339,-527.39,0.00042191,18]
[342903543,1732199476348,-529.36,0.00042191,18]
[342903544,1732199476357,-500.0,0.00042191,18]
[342903545,1732199476366,-1619.03,0.00042191,18]
[342903546,1732199476376,-500.0,0.00042191,18]
[342903547,1732199476385,-1664.0,0.00042191,18]
[342903548,1732199476395,-500.0,0.00042191,18]
[342903549,1732199476404,-500.0,0.00042191,18]
[342903550,1732199476414,-2326.55,0.00042191,18]
[342903551,1732199476424,-500.0,0.00042191,18]
[342903552,1732199476433,-639.44,0.00042191,18]
[342903553,1732199476447,-827.15,0.00042191,18]
[342903554,1732199476456,-813.35,0.00042191,18]
[342903555,1732199476465,-723.15,0.00042191,18]
[342903556,1732199476475,-500.0,0.00042191,18]
[342903557,1732199476485,-583.46,0.00042191,18]
[342903558,1732199476495,-500.0,0.00042191,18]
[342903559,1732199476505,-500.0,0.00042191,18]
[342903560,1732199476514,-576.13,0.00042191,18]
[342903561,1732199476523,-6737.18,0.00042191,18]
[342903562,1732199476532,-616.15,0.00042191,18]
[342903563,1732199476541,-500.0,0.00042191,18]
[342903564,1732199476551,-500.0,0.00042191,18]
[342903565,1732199476560,-500.0,0.00042191,18]
[342903566,1732199476570,-500.0,0.00042191,18]
[342903567,1732199476580,-500.0,0.00042191,18]
[342903568,1732199476590,-1193.64,0.00042191,18]
[342903569,1732199476599,-500.0,0.00042191,120]
[342903570,1732199476609,-510.54,0.00042191,18]
[342903571,1732199476619,-30000.0,0.00042219,30]
[342903572,1732199476629,-2483.70444135,0.00042219,15]
[342903573,1732199476639,-888.8637,0.00042253,2]
[342903574,1732199476648,-151.5,0.00042374,2]
[342903575,1732199476658,-2206.0,0.00042438,120]
[342903576,1732199476667,-500.0,0.00042465,18]
[342903577,1732199476678,-500.0,0.00042465,18]
[342903578,1732199476690,-500.0,0.00042465,18]
[342903579,1732199476700,-500.0,0.00042465,18]
[342903580,1732199476709,-500.0,0.00042465,18]
[342903581,1732199476718,-500.0,0.00042465,18]
[342903582,1732199476728,-500.0,0.00042465,18]
[342903583,1732199476737,-500.0,0.00042465,18]
[342903584,1732199476746,-500.0,0.00042465,18]
[342903585,1732199476755,-500.0,0.00042465,18]
[342903586,1732199476770,-500.0,0.00042465,18]
[342903587,1732199476780,-500.0,0.00042465,18]
[342903588,1732199476789,-500.0,0.00042465,18]
[342903589,1732199476799,-500.0,0.00042465,18]
[342903590,1732199476810,-500.0,0.00042465,18]
[342903591,1732199476819,-780.83,0.00042465,18]
[342903592,1732199476829,-778.02,0.00042465,18]
[342903593,1732199476839,-841.3,0.00042465,18]
[342903594,1732199476849,-500.0,0.00042465,18]
[342903595,1732199476859,-500.0,0.00042465,18]
[342903596,1732199476869,-500.0,0.00042465,18]
[342903597,1732199476877,-644.88,0.00042465,18]
[342903598,1732199476886,-500.74,0.00042465,18]
[342903599,1732199476895,-500.0,0.00042465,18]
[342903600,1732199476904,-500.0,0.00042465,18]
[342903601,1732199476914,-500.0,0.00042465,18]
[342903602,1732199476923,-500.0,0.00042465,18]
[342903603,1732199476932,-1032.66,0.00042465,18]
[342903604,1732199476945,-500.0,0.00042465,18]
[342903605,1732199476953,-500.0,0.00042465,18]
[342903606,1732199476963,-500.0,0.00042465,18]
[342903607,1732199476972,-484.76731573,0.00042465,18]
[342903608,1732199476981,-500.0,0.00042465,18]
[342903609,1732199476990,-500.0,0.00042465,18]
[342903610,1732199476999,-815.66,0.00042465,18]
[342903611,1732199477008,-648.98118407,0.00042465,18]
[342903612,1732199477018,-661.83,0.00042465,18]
[342903613,1732199477027,-500.0,0.00042465,18]
[342903614,1732199477036,-500.0,0.00042465,18]
[342903615,1732199477045,-500.0,0.00042465,18]
[342903616,1732199477054,-500.0,0.00042465,120]
[342903617,1732199477063,-500.0,0.00042465,18]
[342903618,1732199477072,-500.0,0.00042465,18]
[342903619,1732199477082,-500.0,0.00042465,18]
[342903620,1732199477091,-500.0,0.00042465,18]
[342903621,1732199477100,-1263.69,0.00042465,18]
[342903622,1732199477110,-500.0,0.00042465,18]
[342903623,1732199477119,-500.0,0.00042465,18]
[342903624,1732199477128,-500.0,0.00042465,18]
[342903625,1732199477137,-500.0,0.00042465,18]
[342903626,1732199477146,-500.0,0.00042465,18]
[342903627,1732199477156,-519.82,0.00042465,18]
[342903628,1732199477165,-653.14,0.00042465,18]
[342903629,1732199477174,-500.0,0.00042465,18]
[342903630,1732199477183,-500.0,0.00042465,18]
[342903631,1732199477196,-500.0,0.00042465,18]
[342903632,1732199477205,-500.0,0.00042465,18]
[342903633,1732199477214,-500.0,0.00042465,18]
[342903634,1732199477223,-503.14,0.00042465,18]
[342903635,1732199477233,-540.62,0.00042465,18]
[342903636,1732199477242,-500.0,0.00042465,18]
[342903637,1732199477251,-500.0,0.00042465,18]
[342903638,1732199477260,-619.85,0.00042465,18]
[342903639,1732199477270,-500.0,0.00042465,18]
[342903640,1732199477279,-500.0,0.00042465,18]
[342903641,1732199477288,-587.02,0.00042465,18]
[342903642,1732199477297,-1022.9,0.00042465,18]
[342903643,1732199477306,-500.0,0.00042465,18]
[342903644,1732199477315,-544.47,0.00042465,18]
[342903645,1732199477324,-500.0,0.00042465,18]
[342903646,1732199477333,-500.0,0.00042465,18]
[342903647,1732199477342,-598.89,0.00042465,18]
[342903648,1732199477351,-500.0,0.00042465,18]
[342903649,1732199477361,-500.0,0.00042465,18]
[342903650,1732199477370,-500.0,0.00042465,18]
[342903651,1732199477379,-575.52,0.00042465,18]
[342903652,1732199477388,-500.0,0.00042465,18]
[342903653,1732199477397,-500.0,0.00042465,18]
[342903654,1732199477406,-752.96,0.00042465,18]
[342903655,1732199477415,-664.75,0.00042465,18]
[342903656,1732199477424,-500.0,0.00042465,18]
[342903657,1732199477434,-500.0,0.00042465,18]
[342903658,1732199477447,-1075.41,0.00042465,18]
[342903659,1732199477457,-623.69769548,0.00042465,18]
[342903660,1732199477466,-200.0,0.00042465,7]
[342903661,1732199477475,-500.0,0.00042465,18]
[342903662,1732199477484,-500.0,0.00042465,18]
[342903663,1732199477494,-531.22,0.00042465,18]
[342903664,1732199477503,-500.0,0.00042465,18]
[342903665,1732199477513,-551.95,0.00042465,18]
[342903666,1732199477523,-500.0,0.00042465,18]
[342903667,1732199477533,-976.25,0.00042465,18]
[342903668,1732199477542,-1323.6,0.00042465,18]
[342903669,1732199477552,-500.0,0.00042465,18]
[342903670,1732199477561,-500.0,0.00042465,18]
[342903671,1732199477570,-500.0,0.00042465,18]
[342903672,1732199477580,-500.0,0.00042465,7]
[342903673,1732199477590,-500.0,0.00042465,18]
[342903674,1732199477599,-500.0,0.00042465,18]
[342903675,1732199477608,-544.81,0.00042465,18]
[342903676,1732199477619,-500.0,0.00042465,18]
[342903677,1732199477628,-500.0,0.00042465,18]
[342903678,1732199477639,-500.0,0.00042465,18]
[342903679,1732199477650,-1368.0,0.00042465,18]
[342903680,1732199477660,-500.0,0.00042465,18]
[342903681,1732199477669,-617.18,0.00042465,18]
[342903682,1732199477678,-500.0,0.00042465,18]
[342903683,1732199477691,-500.0,0.00042465,18]
[342903684,1732199477701,-500.0,0.00042465,18]
[342903685,1732199477710,-567.49,0.00042465,18]
[342903686,1732199477720,-586.87,0.00042465,18]
[342903687,1732199477730,-500.0,0.00042465,18]
[342903688,1732199477740,-395.75553036,0.00042465,18]
[342903689,1732199477749,-500.0,0.00042465,18]
[342903690,1732199477760,-500.0,0.00042465,18]
[342903691,1732199477770,-500.0,0.00042465,18]
[342903692,1732199477784,-666.68,0.00042465,18]
[342903693,1732199477793,-514.95,0.00042465,18]
[342903694,1732199477802,-500.0,0.00042465,18]
[342903695,1732199477811,-1095.65,0.00042465,18]
[342903696,1732199477821,-669.92,0.00042465,18]
[342903697,1732199477830,-500.0,0.00042465,18]
[342903698,1732199477840,-500.0,0.00042465,18]
[342903699,1732199477849,-500.0,0.00042465,18]
[342903700,1732199477858,-846.58,0.00042465,18]
[342903701,1732199477867,-1076.99,0.00042465,18]
[342903702,1732199477876,-500.0,0.00042465,18]
[342903703,1732199477888,-500.0,0.00042465,18]
[342903704,1732199477897,-598.83,0.00042465,18]
[342903705,1732199477907,-655.07,0.00042465,18]
[342903706,1732199477916,-500.0,0.00042465,18]
[342903707,1732199477925,-790.41,0.00042465,18]
[342903708,1732199477934,-500.0,0.00042465,18]
[342903709,1732199477948,-911.49,0.00042465,18]
[342903710,1732199477958,-500.0,0.00042465,18]
[342903711,1732199477968,-500.0,0.00042465,18]
[342903712,1732199477977,-500.0,0.00042465,18]
[342903713,1732199477987,-1682.08,0.00042465,18]
[342903714,1732199477996,-500.0,0.00042465,18]
[342903715,1732199478006,-1107.76,0.00042465,18]
[342903716,1732199478016,-875.4,0.00042465,18]
[342903717,1732199478025,-1132.01,0.00042465,18]
[342903718,1732199478034,-500.0,0.00042465,18]
[342903719,1732199478044,-623.95,0.00042465,18]
[342903720,1732199478053,-500.0,0.00042465,18]
[342903721,1732199478063,-456.09228947,0.00042465,18]
[342903722,1732199478072,-500.0,0.00042465,18]
[342903723,1732199478082,-500.0,0.00042465,18]
[342903724,1732199478092,-500.0,0.00042465,18]
[342903725,1732199478102,-533.69,0.00042465,18]
[342903726,1732199478111,-500.0,0.00042465,18]
[342903727,1732199478122,-920.48,0.00042465,18]
[342903728,1732199478131,-773.68,0.00042465,18]
[342903729,1732199478141,-805.51,0.00042465,18]
[342903730,1732199478150,-500.0,0.00042465,18]
[342903731,1732199478160,-500.0,0.00042465,18]
[342903732,1732199478169,-500.0,0.00042465,18]
[342903733,1732199478179,-526.27,0.00042465,18]
[342903734,1732199478191,-1069.79,0.00042465,18]
[342903735,1732199478201,-683.11,0.00042465,18]
[342903736,1732199478211,-500.0,0.00042465,18]
[342903737,1732199478220,-500.0,0.00042465,18]
[342903738,1732199478229,-500.0,0.00042465,18]
[342903739,1732199478239,-1188.11,0.00042465,18]
[342903740,1732199478248,-1080.92,0.00042465,18]
[342903741,1732199478258,-500.0,0.00042465,18]
[342903742,1732199478267,-500.0,0.00042465,18]
[342903743,1732199478277,-703.8,0.00042465,18]
[342903744,1732199478287,-500.0,0.00042465,18]
[342903745,1732199478297,-527.44,0.00042465,18]
[342903746,1732199478307,-500.0,0.00042465,18]
[342903747,1732199478316,-900.83,0.00042465,18]
[342903748,1732199478325,-500.0,0.00042465,18]
[342903749,1732199478335,-881.44,0.00042465,18]
[342903750,1732199478346,-500.0,0.00042465,18]
[342903751,1732199478356,-500.0,0.00042465,18]
[342903752,1732199478365,-500.0,0.00042465,18]
[342903753,1732199478374,-500.0,0.00042465,18]
[342903754,1732199478384,-513.53,0.00042465,18]
[342903755,1732199478394,-500.0,0.00042465,18]
[342903756,1732199478403,-500.0,0.00042465,18]
[342903757,1732199478412,-592.27,0.00042465,18]
[342903758,1732199478422,-500.0,0.00042465,18]
[342903759,1732199478431,-529.9,0.00042465,18]
[342903760,1732199478442,-500.0,0.00042465,18]
[342903761,1732199478451,-500.0,0.00042465,18]
[342903762,1732199478461,-500.0,0.00042465,18]
[342903763,1732199478470,-531.84,0.00042465,18]
[342903764,1732199478480,-500.0,0.00042465,18]
[342903765,1732199478490,-500.0,0.00042465,18]
[342903766,1732199478501,-927.48,0.00042465,18]
[342903767,1732199478511,-580.51,0.00042465,18]
[342903768,1732199478521,-500.0,0.00042465,18]
[342903769,1732199478531,-1042.61,0.00042465,18]
[342903770,1732199478541,-552.74,0.00042465,18]
[342903771,1732199478550,-500.0,0.00042465,18]
[342903772,1732199478560,-539.14,0.00042465,18]
[342903773,1732199478570,-500.0,0.00042465,18]
[342903774,1732199478579,-500.0,0.00042465,18]
[342903775,1732199478589,-500.0,0.00042465,18]
[342903776,1732199478599,-500.0,0.00042465,18]
[342903777,1732199478608,-500.0,0.00042465,18]
[342903778,1732199478618,-440.14,0.00042465,18]
[342903779,1732199478628,-528.42,0.00042465,18]
[342903780,1732199478638,-500.0,0.00042465,18]
[342903781,1732199478648,-245.9,0.00042465,18]
[342903782,1732199478657,-500.0,0.00042465,18]
[342903783,1732199478666,-1433.81,0.00042465,18]
[342903784,1732199478676,-500.0,0.00042465,18]
[342903785,1732199478685,-567.55,0.00042465,18]
[342903786,1732199478698,-1338.66,0.00042465,18]
[342903787,1732199478708,-500.0,0.00042465,18]
[342903788,1732199478717,-500.0,0.00042465,18]
[342903789,1732199478727,-1410.19,0.00042465,18]
[342903790,1732199478736,-500.0,0.00042465,18]
[342903791,1732199478745,-699.66,0.00042465,18]
[342903792,1732199478755,-500.0,0.00042465,18]
[342903793,1732199478765,-500.0,0.00042465,18]
[342903794,1732199478777,-500.0,0.00042465,18]
[342903795,1732199478787,-500.0,0.00042465,18]
[342903796,1732199478797,-500.0,0.00042465,18]
[342903797,1732199478806,-643.83,0.00042465,18]
[342903798,1732199478817,-297.53047005,0.00042465,18]
[342903799,1732199478826,-500.0,0.00042465,18]
[342903800,1732199478835,-500.0,0.00042465,18]
[342903801,1732199478844,-500.0,0.00042465,18]
[342903802,1732199478853,-298.09680627,0.00042465,18]
[342903803,1732199478864,-563.28,0.00042465,18]
[342903804,1732199478874,-500.0,0.00042465,18]
[342903805,1732199478883,-715.43,0.00042465,18]
[342903806,1732199478892,-500.0,0.00042465,18]
[342903807,1732199478901,-424.41643885,0.00042465,18]
[342903808,1732199478910,-1239.95,0.00042465,18]
[342903809,1732199478919,-525.39,0.00042465,18]
[342903810,1732199478928,-500.0,0.00042465,18]
[342903811,1732199478940,-500.0,0.00042465,18]
[342903812,1732199478950,-475.60993881,0.00042465,18]
[342903813,1732199478960,-500.0,0.00042465,18]
[342903814,1732199478969,-500.0,0.00042465,18]
[342903815,1732199478979,-500.0,0.00042465,18]
[342903816,1732199478989,-849.0,0.00042465,18]
[342903817,1732199478998,-1580.19,0.00042465,18]
[342903818,1732199479007,-500.0,0.00042465,18]
[342903819,1732199479016,-500.0,0.00042465,18]
[342903820,1732199479026,-500.0,0.00042465,18]
[342903821,1732199479035,-500.0,0.00042465,18]
[342903822,1732199479045,-576.19,0.00042465,18]
[342903823,1732199479054,-500.0,0.00042465,18]
[342903824,1732199479063,-500.0,0.00042465,18]
[342903825,1732199479073,-1184.06,0.00042465,18]
[342903826,1732199479083,-627.25,0.00042465,18]
[342903827,1732199479093,-500.0,0.00042465,18]
[342903828,1732199479102,-1046.52,0.00042465,18]
[342903829,1732199479111,-782.8,0.00042465,18]
[342903830,1732199479120,-500.0,0.00042465,18]
[342903831,1732199479130,-500.0,0.00042465,18]
[342903832,1732199479139,-831.01,0.00042465,18]
[342903833,1732199479149,-500.0,0.00042465,18]
[342903834,1732199479158,-500.0,0.00042465,18]
[342903835,1732199479168,-500.0,0.00042465,18]
[342903836,1732199479178,-724.43,0.00042465,18]
[342903837,1732199479187,-500.0,0.00042465,18]
[342903838,1732199479203,-592.08,0.00042465,18]
[342903839,1732199479213,-500.0,0.00042465,18]
[342903840,1732199479222,-581.75121808,0.00042465,18]
[342903841,1732199479232,-500.0,0.00042465,18]
[342903842,1732199479242,-500.0,0.00042465,18]
[342903843,1732199479251,-781.59,0.00042465,18]
[342903844,1732199479261,-500.0,0.00042465,18]
[342903845,1732199479270,-500.0,0.00042465,18]
[342903846,1732199479279,-500.0,0.00042465,18]
[342903847,1732199479288,-720.08,0.00042465,18]
[342903848,1732199479298,-500.0,0.00042465,18]
[342903849,1732199479308,-568.73,0.00042465,18]
[342903850,1732199479317,-2351.59,0.00042465,18]
[342903851,1732199479327,-501.92,0.00042465,18]
[342903852,1732199479336,-831.45,0.00042465,18]
[342903853,1732199479345,-1224.29,0.00042465,18]
[342903854,1732199479355,-923.7,0.00042465,18]
[342903855,1732199479364,-725.08,0.00042465,18]
[342903856,1732199479374,-500.0,0.00042465,18]
[342903857,1732199479383,-637.17,0.00042465,18]
[342903858,1732199479393,-556.73,0.00042465,18]
[342903859,1732199479402,-500.0,0.00042465,18]
[342903860,1732199479411,-500.0,0.00042465,18]
[342903861,1732199479420,-519.94,0.00042465,18]
[342903862,1732199479429,-500.0,0.00042465,18]
[342903863,1732199479441,-1025.56,0.00042465,18]
[342903864,1732199479452,-1343.62,0.00042465,18]
[342903865,1732199479461,-500.0,0.00042465,18]
[342903866,1732199479471,-500.0,0.00042465,18]
[342903867,1732199479481,-583.5,0.00042465,18]
[342903868,1732199479491,-500.0,0.00042465,18]
[342903869,1732199479501,-500.0,0.00042465,18]
[342903870,1732199479511,-1321.86,0.00042465,18]
[342903871,1732199479521,-500.0,0.00042465,18]
[342903872,1732199479531,-754.87,0.00042465,18]
[342903873,1732199479541,-957.89,0.00042465,18]
[342903874,1732199479551,-1606.25,0.00042465,18]
[342903875,1732199479561,-500.0,0.00042465,18]
[342903876,1732199479571,-500.0,0.00042465,18]
[342903877,1732199479581,-500.0,0.00042465,18]
[342903878,1732199479591,-500.0,0.00042465,18]
[342903879,1732199479601,-500.0,0.00042465,18]
[342903880,1732199479611,-1198.83,0.00042465,18]
[342903881,1732199479621,-1224.56,0.00042465,18]
[342903882,1732199479631,-500.0,0.00042465,18]
[342903883,1732199479640,-500.0,0.00042465,18]
[342903884,1732199479650,-1944.0,0.00042465,18]
[342903885,1732199479660,-844.23,0.00042465,18]
[342903886,1732199479669,-500.0,0.00042465,18]
[342903887,1732199479679,-20792.91,0.00042465,18]
[342903888,1732199479692,-500.0,0.00042465,18]
[342903889,1732199479703,-915.43,0.00042465,18]
[342903890,1732199479712,-1472.33,0.00042465,18]
[342903891,1732199479721,-500.0,0.00042465,18]
[342903892,1732199479730,-500.0,0.00042465,18]
[342903893,1732199479740,-1620.61,0.00042465,18]
[342903894,1732199479749,-951.6,0.00042465,18]
[342903895,1732199479759,-500.0,0.00042465,18]
[342903896,1732199479773,-1310.37,0.00042465,18]
[342903897,1732199479782,-500.0,0.00042465,18]
[342903898,1732199479791,-13540.77,0.00042465,5]
[342903899,1732199479801,-897.1,0.00042465,18]
[342903900,1732199479811,-629.14,0.00042465,18]
[342903901,1732199479821,-875.2,0.00042465,18]
[342903902,1732199479831,-500.0,0.00042465,18]
[342903903,1732199479840,-500.0,0.00042465,18]
[342903904,1732199479851,-547.3,0.00042465,18]
[342903905,1732199479860,-500.0,0.00042465,18]
[342903906,1732199479870,-500.0,0.00042465,18]
[342903907,1732199479879,-500.0,0.00042465,18]
[342903908,1732199479889,-500.0,0.00042465,18]
[342903909,1732199479899,-500.0,0.00042465,18]
[342903910,1732199479908,-500.0,0.00042465,18]
[342903911,1732199479918,-500.0,0.00042465,18]
[342903912,1732199479927,-574.36,0.00042465,18]
[342903913,1732199479936,-500.0,0.00042465,18]
[342903914,1732199479948,-524.78,0.00042465,18]
[342903915,1732199479957,-500.0,0.00042465,18]
[342903916,1732199479966,-500.0,0.00042465,18]
[342903917,1732199479975,-500.0,0.00042465,18]
[342903918,1732199479985,-523.67,0.00042465,18]
[342903919,1732199479995,-538.28,0.00042465,18]
[342903920,1732199480004,-500.0,0.00042465,18]
[342903921,1732199480014,-500.0,0.00042465,18]
[342903922,1732199480023,-500.0,0.00042465,18]
[342903923,1732199480033,-500.0,0.00042465,18]
[342903924,1732199480043,-500.0,0.00042465,18]
[342903925,1732199480052,-500.0,0.00042465,18]
[342903926,1732199480063,-500.0,0.00042465,18]
[342903927,1732199480073,-500.0,0.00042465,18]
[342903928,1732199480082,-2381.3,0.00042465,18]
[342903929,1732199480092,-2579.86,0.00042465,18]
[342903930,1732199480101,-1957.75,0.00042465,18]
[342903931,1732199480111,-654.89,0.00042465,18]
[342903932,1732199480121,-753.6,0.00042465,18]
[342903933,1732199480131,-500.0,0.00042465,18]
[342903934,1732199480140,-3745.49,0.00042465,18]
[342903935,1732199480149,-500.76,0.00042465,18]
[342903936,1732199480159,-507.2,0.00042465,18]
[342903937,1732199480169,-683.13,0.00042465,18]
[342903938,1732199480178,-14860.05,0.00042465,18]
[342903939,1732199480188,-523.71,0.00042465,18]
[342903940,1732199480201,-1008.3,0.00042465,18]
[342903941,1732199480211,-1260.3,0.00042465,18]
[342903942,1732199480303,-675.11,0.00042465,18]
[342903943,1732199480349,-1290.48,0.00042465,18]
[342903944,1732199480358,-500.0,0.00042465,18]
[342903945,1732199480368,-1291.16,0.00042465,18]
[342903946,1732199480378,-846.23,0.00042465,18]
[342903947,1732199480387,-500.0,0.00042465,18]
[342903948,1732199480396,-500.0,0.00042465,18]
[342903949,1732199480406,-581.71,0.00042465,18]
[342903950,1732199480416,-3778.72,0.00042465,18]
[342903951,1732199480426,-921.32,0.00042465,18]
[342903952,1732199480436,-3513.14,0.00042465,18]
[342903953,1732199480451,-532.42,0.00042465,18]
[342903954,1732199480460,-632.39,0.00042465,18]